[Event "45th FIDE Olympiad 2024"]
[Site "Budapest"]
[Date "2024.09.11"]
[Round "1.247"]
[White "Nikolovski, Nikola"]
[Black "Amewounou, Komlan Kouessan"]
[Result "1-0"]
[ECO "B07"]
[WhiteElo "2388"]
[BlackElo "1825"]
[Annotator "ChessBase"]
[PlyCount "83"]
[EventDate "2024.09.05"]
[EventType "team-tourn"]
[EventCountry "HUN"]
[SourceTitle "playchess.com"]
[Source "ChessBase"]
[SourceQuality "1"]
[WhiteTeam "North Macedonia"]
[BlackTeam "Togo"]
[BlackTeamCountry "TOG"]
[TimeControl "40/5400+30:1800+30"]

1. e4 d6 2. Nc3 g6 3. f4 Nf6 4. Bc4 Bg7 5. d3 Nbd7 6. Nf3 c6 7. a4 e5 8. fxe5 Nxe5 9. Nxe5 dxe5 10. O-O O-O 11. Qf3 Be6 12. Bxe6 fxe6 13. Qh3 Qb6+ 14. Be3 Qxb2 15. Bd2 Qb6+ 16. Kh1 c5 17. Nb5 Nh5 18. Rfb1 Nf4 19. Qg4 Rf7 20. Na3 Qc6 21. Nc4 Raf8 22. Be3 b6 23. Kg1 h5 24. Qd1 Kh7 25. Qd2 g5 26. h3 Qc7 27. a5 bxa5 28. Rxa5 Rb8 29. Rba1 Rb7 30. Rxc5 Qe7 31. Rca5 Qf6 32. Nxe5 Rfc7 33. d4 Rb2 34. Rc1 Qd8 35. Nf3 Rcxc2 36. Rxc2 Rxc2 37. Nxg5+ Qxg5 38. Rxg5 Rxd2 39. Bxd2 Ne2+ 40. Kf1 Nxd4 41. Rxh5+ Kg8 42. Bc3 1-0

[Event "45th FIDE Olympiad 2024"]
[Site "Budapest"]
[Date "2024.09.11"]
[Round "1.248"]
[White "Semeko, Lumen Paco"]
[Black "Risteski, Emil"]
[Result "0-1"]
[ECO "D05"]
[WhiteElo "1740"]
[BlackElo "2367"]
[Annotator "ChessBase"]
[PlyCount "68"]
[EventDate "2024.09.05"]
[EventType "team-tourn"]
[EventCountry "HUN"]
[SourceTitle "playchess.com"]
[Source "ChessBase"]
[SourceQuality "1"]
[WhiteTeam "Togo"]
[BlackTeam "North Macedonia"]
[WhiteTeamCountry "TOG"]
[TimeControl "40/5400+30:1800+30"]

1. Nf3 Nf6 2. b3 d5 3. Bb2 e6 4. e3 Bd6 5. d4 O-O 6. Bd3 b6 7. Nbd2 c5 8. c4 cxd4 9. exd4 Bb7 10. O-O Nc6 11. Ne5 dxc4 12. Ndxc4 Be7 13. Rc1 Rc8 14. Nxc6 Rxc6 15. Be2 Nd5 16. a3 Bg5 17. Rc2 Qc7 18. Bd3 b5 19. Ne5 Rxc2 20. Bxc2 Nf4 21. f3 Rc8 22. Be4 Bxe4 23. fxe4 Qc2 24. Qxc2 Rxc2 25. Ba1 f6 26. Nf3 Rxg2+ 27. Kh1 Re2 28. Nxg5 fxg5 29. h4 gxh4 30. Rxf4 Re1+ 31. Kg2 Rxa1 32. d5 exd5 33. exd5 Rd1 34. Rf5 Rd3 0-1

[Event "45th FIDE Olympiad 2024"]
[Site "Budapest"]
[Date "2024.09.11"]
[Round "1.253"]
[White "Murphy, Conor E"]
[Black "Kumar, Manoj"]
[Result "1-0"]
[ECO "C54"]
[WhiteElo "2453"]
[BlackElo "1951"]
[Annotator "TA"]
[PlyCount "97"]
[EventDate "2024.09.05"]
[EventType "team-tourn"]
[EventCountry "HUN"]
[SourceTitle "playchess.com"]
[Source "ChessBase"]
[SourceQuality "1"]
[WhiteTeam "Ireland"]
[BlackTeam "Fiji"]
[WhiteTeamCountry "IRL"]
[BlackTeamCountry "FIJ"]
[TimeControl "40/5400+30:1800+30"]

{[%evp 11,97,13,14,24,29,17,22,22,24,12,23,21,22,24,22,23,33,29,31,33,29,16,133,123,129,126,121,133,117,114,140,115,116,118,122,127,117,104,250,260,262,268,267,268,291,283,294,290,313,315,325,322,337,342,325,284,369,376,379,377,379,351,468,461,463,454,464,429,521,510,578,596,868,883,2943,2954,3165,2467,6299,5240,8741,7183,29980,29981,29981,29982,29976,29977]} 1. e4 e5 2. Nf3 Nc6 3. Bc4 Bc5 4. O-O Nf6 5. d3 d6 6. c3 a6 7. a4 Ba7 8. Re1 h6 9. Nbd2 {The position is equal.} O-O 10. h3 Re8 11. b4 Be6 12. Bxe6 Rxe6 13. Qc2 b5 14. Nb3 Bb6 15. Bd2 Rb8 16. c4 Nd4 (16... bxc4 $11 17. dxc4 (17. Qxc4 d5 $14) 17... Nd7) 17. Nfxd4 $16 Bxd4 18. Nxd4 exd4 19. axb5 axb5 20. cxb5 Rxb5 21. Qc4 Rb8 22. Qxd4 {White is more active.} c5 23. bxc5 dxc5 24. Qc4 ({Reject} 24. Qxc5 $6 Qxd3 25. Be3 Qxe4 $11) 24... Qd4 {A mistake that costs the game.} (24... Nd7 $16) 25. Qxd4 $18 cxd4 26. Ra4 Nd7 27. Rxd4 Nc5 28. Rd5 Nb3 29. Be3 Ra6 30. Rb1 Ra1 31. Rxa1 Nxa1 {[%mdl 4096] Endgame. KRB-KRN} 32. Rc5 {Prevents Nc2} Nb3 33. Rc3 Kf8 34. g4 Ke7 35. h4 {[%cal Bh3h4,Bh4h5][%mdl 32]} Rb7 36. Kg2 Ke6 37. h5 Na5 38. f4 Kd7 39. Kf3 Nc6 40. d4 {[%cal Bd3d4,Bd4d5][%mdl 32]} Rb1 41. Ra3 Rb7 42. d5 Ne7 43. Ra7 Rxa7 44. Bxa7 {[#] aiming for Bd4. KB-KN} Kd6 45. Ke3 Nc8 46. Bd4 f6 47. Kd3 {White mates.} Ne7 48. Kc4 Kd7 49. Bc5 {Weighted Error Value: White=0.04 (flawless) /Black=0.30.  Mistake:       	---       	Black=2      Inaccurate:     	---       	Black=3      OK:         	White=22    	Black=6      Best:        	White=3     	---} 1-0

[Event "45th FIDE Olympiad 2024"]
[Site "Budapest"]
[Date "2024.09.11"]
[Round "1.254"]
[White "Prasad, Rudr"]
[Black "Baburin, Alexander"]
[Result "1/2-1/2"]
[ECO "A46"]
[WhiteElo "1777"]
[BlackElo "2376"]
[Annotator "ChessBase"]
[PlyCount "75"]
[EventDate "2024.09.05"]
[EventType "team-tourn"]
[EventCountry "HUN"]
[SourceTitle "playchess.com"]
[Source "ChessBase"]
[SourceQuality "1"]
[WhiteTeam "Fiji"]
[BlackTeam "Ireland"]
[WhiteTeamCountry "FIJ"]
[BlackTeamCountry "IRL"]
[TimeControl "40/5400+30:1800+30"]

1. d4 Nf6 2. Nf3 e6 3. Bf4 c5 4. c3 Nc6 5. e3 Nh5 6. Bg3 Qb6 7. Qc2 Nxg3 8. hxg3 g6 9. Nbd2 d5 10. Be2 Bg7 11. O-O O-O 12. Nb3 cxd4 13. exd4 Qc7 14. Rac1 b6 15. Rfe1 Bd7 16. Qd2 a5 17. Qf4 Qxf4 18. gxf4 Ne7 19. Ne5 Be8 20. Nd2 Nf5 21. Bd3 Nd6 22. c4 dxc4 23. Ndxc4 Nxc4 24. Bxc4 Rd8 25. Red1 Bf6 26. a3 Kg7 27. d5 Ba4 28. b3 Bxe5 29. fxe5 exd5 30. Rxd5 Rxd5 31. Bxd5 Rd8 32. Bxf7 Kxf7 33. bxa4 Rd4 34. Rc3 Ke6 35. Rc6+ Kxe5 36. Rxb6 Rxa4 37. Rb3 Rd4 38. Kf1 1/2-1/2

[Event "45th FIDE Olympiad 2024"]
[Site "Budapest"]
[Date "2024.09.11"]
[Round "1.255"]
[White "Kanyamarala, Tarun"]
[Black "Terubea, Ronald"]
[Result "1-0"]
[ECO "A06"]
[WhiteElo "2361"]
[BlackElo "1836"]
[Annotator "TA"]
[PlyCount "47"]
[EventDate "2024.09.05"]
[EventType "team-tourn"]
[EventCountry "HUN"]
[SourceTitle "playchess.com"]
[Source "ChessBase"]
[SourceQuality "1"]
[WhiteTeam "Ireland"]
[BlackTeam "Fiji"]
[WhiteTeamCountry "IRL"]
[BlackTeamCountry "FIJ"]
[TimeControl "40/5400+30:1800+30"]

{[%evp 9,47,39,51,58,98,87,102,102,150,151,168,109,112,106,197,196,510,520,544,555,539,534,553,525,556,361,717,712,932,645,1844,552,5481,1072,2226,1137,1104,1081,29998,29999]} 1. Nf3 d5 2. e3 a6 3. c4 Nf6 4. cxd5 Qxd5 5. Nc3 Qa5 6. d4 c6 7. Bc4 b5 8. Bb3 {White is better.} Bf5 (8... e6 $142) 9. O-O e6 {[#] Against e4} 10. Re1 (10. e4 $1 $18 {[%cal Re4f5]} Bg4 (10... Nxe4 11. Nxe4 Bxe4 12. Ng5 $18) 11. h3) 10... Bb4 $16 11. Bd2 Qb6 {[#]} (11... Ne4 $16) 12. e4 $1 $18 Bxc3 $2 (12... Bg4 {is a better chance.} 13. d5 e5) 13. exf5 (13. Bxc3 Nxe4 14. Nh4 Nxc3 15. bxc3 O-O $14) 13... Bxd2 14. Qxd2 O-O 15. fxe6 fxe6 16. Rxe6 Kh8 17. Rc1 Qb7 $2 (17... Qd8 18. Ng5 a5) 18. Ne5 {[%cal Od2g5] Qg5! is the strong threat.} a5 19. a3 Ra6 20. Qe2 (20. Qg5 $142 {[%cal Oe6f6] White threatens Rxf6! and mate.} Qf7 21. Nxf7+ Rxf7 22. Rxf6 gxf6 23. Qh6 Nd7 24. Bxf7 Ra8 25. Rxc6) 20... Qa7 21. Qe3 ({Weaker is} 21. Nxc6 Nxc6 22. Rexc6 (22. Rcxc6 Rxc6 23. Rxc6 Qxd4 $16) 22... Rxc6 23. Rxc6 Qxd4 $18) (21. Rc3 $142 Nbd7 22. Re7 (22. Rexc6 Rxc6 23. Nxc6 Qb6 $18) (22. Nxc6 Qb7 $18)) 21... Nd5 22. Bxd5 cxd5 {[#]} 23. Qf3 $3 {[%mdl 512]} Kg8 {[#]} (23... Nd7 24. Nxd7) 24. Qxf8+ $3 {[%mdl 512] Weighted Error Value: White=1.00/Black=0.94.  Mistake:       	White=1     	Black=4      Inaccurate:     	White=1     	Black=3      OK:         	White=4     	Black=3      Best:        	White=1     	Black=1      Strong:       	White=1     	---} 1-0